Cogmind - Beta 13 @@@ ROGUE MODE // 2024.05.21 @ 19:36:06 Player: puppuppit Result: Self-destructed Performance ------------- Evolutions (1) 500 Regions Visited (4) 800 Robots Destroyed (12) 60 Value Destroyed (111) 111 Prototype IDs (1) 20 Alien Tech Used (0) 0 Bonus (16) 16 TOTAL SCORE: 1507 Bonus ------- Follower Combat Kills 25 Friendly Fire -9 Cogmind --------- Core Integrity 348/400 Matter 300/300 Energy 124/125 System Corruption 1% Temperature Cool (3) Movement Flying (34) Location -9/Mines Parts ------- > --- POWER (1) -------- Light Ion Engine > --- PROPULSION (4) --- Hover Unit Flight Unit Flight Unit Improved Flight Unit > --- UTILITY (2) ------ Small Storage Unit Propulsion Shielding > --- WEAPON (2) ------- Light Assault Rifle Light Cannon > --- INVENTORY (8) ---- EM Shotgun EM Shotgun Light Cannon Improved Light Cannon Rocket Launcher Makeshift Axe Explosive Trap Explosive Trap Peak State ------------ > --- POWER ------------ Light Ion Engine > --- PROPULSION ------- Hover Unit Flight Unit Flight Unit Improved Flight Unit > --- UTILITY ---------- Small Storage Unit Propulsion Shielding > --- WEAPON ----------- Light Assault Rifle Light Assault Rifle > --- INVENTORY -------- High-capacity Matter Pod High-capacity Matter Pod Light Assault Rifle Light Cannon Rocket Launcher Mace Makeshift Axe [Rating: 12] Favorites ----------- Power Light Ion Engine Engine Light Ion Engine Propulsion Wheel Wheel Wheel Hover Unit Hover Unit Flight Unit Flight Unit Utility Small Storage Unit Storage Small Storage Unit Protection Propulsion Shielding Weapon Light Assault Rifle Energy Gun EM Pulse Gun Ballistic Gun Light Assault Rifle Ballistic Cannon Light Cannon Build | -11 -10 -10 -9 -9 ------- Run | Yrd Mat Min Mat Min Slots Evolved 2 | . . . 2 . Power . | . . . . . Propulsion 2 | . . . 2 . Utility . | . . . . . Weapon . | . . . . . Parts Attached 21 | 6 1 8 3 3 Power 4 | 1 . 2 1 . Engine 4 | 1 . 2 1 . Core . | . . . . . Reactor . | . . . . . Propulsion 8 | 2 . 4 2 . Treads . | . . . . . Leg . | . . . . . Wheel 4 | 2 . 2 . . Hover 1 | . . . 1 . Flight 3 | . . 2 1 . Utility 2 | 1 1 . . . Device . | . . . . . Storage 1 | 1 . . . . Processor . | . . . . . Hackware . | . . . . . Protection 1 | . 1 . . . Artifact . | . . . . . Weapon 7 | 2 . 2 . 3 Energy Gun 1 | 1 . . . . Energy Cannon . | . . . . . Ballistic Gun 3 | 1 . 1 . 1 Ballistic Cannon 3 | . . 1 . 2 Launcher . | . . . . . Special Weapon . | . . . . . Impact Weapon . | . . . . . Slashing Weapon . | . . . . . Piercing Weapon . | . . . . . Special Melee Weapon . | . . . . . Unidentified Prototypes 1 | . . . 1 . Parts Lost . | . . . . . Power . | . . . . . Propulsion . | . . . . . Utility . | . . . . . Weapon . | . . . . . Highest Loss Streak . | . . . . . To Critical Strikes . | . . . . . Average Slot Usage (%) 96 | . 94 99 76 100 Engine 12 | . 14 13 2 11 Wheel 19 | . 28 26 . . Hover 2 | . . . 5 11 Flight 8 | . . 1 24 33 Storage 13 | . 14 14 11 11 Protection 12 | . 8 14 11 11 Energy Gun 2 | . 14 1 . . Ballistic Gun 14 | . 14 14 22 13 Ballistic Cannon 8 | . . 11 . 8 Naked Turns . | . . . . . Heaviest Build 13 | 11 12 13 11 13 Greatest Support 26 | 26 26 26 13 13 Greatest Overweight (x) 3 | . . 3 . . Average Overweight (x) . | . . . . . Largest Inventory Capacity 8 | 8 8 8 8 8 Average Capacity 7 | 7 8 8 8 8 Most Carried 8 | . 2 8 8 8 Average Carried 4 | . 1 3 7 7 Final Capacity 8 | 8 8 8 8 8 Final Carried 8 | . 2 8 7 8 Class Distribution -------------------- 81% | Mutant 18% | Scavenger-Mutant Dominant Class ---------------- Mutant | -10/Materials Mutant | -10/Mines Mutant | -9/Materials Scavenger-Mutant | -9/Mines Resources | -11 -10 -10 -9 -9 ----------- Run | Yrd Mat Min Mat Min Matter Collected 742 | 183 . 389 . 170 Remotely . | . . . . . Salvage Created 450 | . 83 258 . 109 Parts 19 | . 2 14 . 3 Haulers Intercepted . | . . . . . Recyclers Shooed 1 | . . 1 . . Parts Field Recycled . | . . . . . Retrieved Matter . | . . . . . Parts Self-Destructed . | . . . . . Prevented . | . . . . . Kills | -11 -10 -10 -9 -9 ------- Run | Yrd Mat Min Mat Min Combat Hostiles Destroyed 4 | . . 4 . . Guns 1 | . . 1 . . Cannons 3 | . . 3 . . Classes Destroyed 5 | . 1 4 . . Worker 3 | . . 2 . 1 Tunneler 1 | . . 1 . . Recycler 4 | . 1 2 . 1 Swarmer 3 | . . 3 . . Grunt 1 | . . 1 . . Best Kill Streak 3 | . 1 3 . 1 Combat Bots Only 3 | . . 3 . . Max Kills in Single Turn 1 | . 1 1 . 1 Gunslinging . | . . . . . Exploded . | . . . . . Melee . | . . . . . Uniques/NPCs Destroyed . | . . . . . Combat | -11 -10 -10 -9 -9 -------- Run | Yrd Mat Min Mat Min Hostile Shots Fired 56 | . 22 10 18 6 Missed 23 | . 8 2 11 2 Damage Taken 384 | . 151 98 87 48 Core 129 | . 59 18 40 12 Absorbed by Shields . | . . . . . Redirected to Shielding 20 | . 2 7 7 4 Core Remaining (%) 84 | 100 . 69 . . Volleys Fired 42 | . 4 31 . 7 Largest 2 | . 2 2 . 2 Hottest 60 | . 60 55 . 55 Shots Fired 84 | . 8 62 . 14 Gun 47 | . 8 32 . 7 Cannon 37 | . . 30 . 7 Launcher . | . . . . . Special . | . . . . . Kinetic 80 | . 4 62 . 14 Thermal . | . . . . . Explosive . | . . . . . Electromagnetic 4 | . 4 . . . Robot Hit Streak 13 | . 3 13 . 8 Robot Miss Streak 3 | . 2 3 . 1 Penetration Max . | . . . . . Secondary Targets . | . . . . . Shots Hit Robots 56 | . 5 41 . 10 Core Hits 18 | . 1 15 . 2 Critical Kills . | . . . . . Critical Parts Destroyed . | . . . . . Critical Strikes 1 | . . 1 . . Blast 1 | . . 1 . . Melee Attacks . | . . . . . Impact . | . . . . . Slashing . | . . . . . Piercing . | . . . . . Sneak Attacks . | . . . . . Combat Hostiles . | . . . . . Follow-up Attacks . | . . . . . Damage Inflicted 764 | . 78 532 . 154 Guns 286 | . 46 196 . 44 Cannons 446 | . . 336 . 110 Explosions 32 | . 32 . . . Melee . | . . . . . Ramming . | . . . . . Kinetic 702 | . 16 532 . 154 Thermal 32 | . 32 . . . Explosive . | . . . . . Electromagnetic 30 | . 30 . . . Impact . | . . . . . Slashing . | . . . . . Piercing . | . . . . . Highest Corruption 1 | . . . 1 1 Average Corruption 1 | . . . 1 1 Corruption Purged . | . . . . . Corruption Blocked . | . . . . . Effects 4 | . . . 1 3 Message Errors 1 | . . . . 1 Data Loss (major) 3 | . . . 1 2 Overload Shots . | . . . . . Overflow Damage 10 | . . . . 10 Projectiles 10 | . . . . 10 Explosions . | . . . . . Melee . | . . . . . Knockbacks 7 | . . 5 . 2 Impact . | . . . . . Kinetic 6 | . . 4 . 2 Secondary 1 | . . 1 . . Self-Inflicted Damage 36 | . 36 . . . Shots 1 | . 1 . . . Rammed . | . . . . . Targets Rammed . | . . . . . Kicked . | . . . . . Crushed . | . . . . . Highest Temperature 55 | . 40 55 . 28 Average Temperature 15 | . 21 15 . 13 Received Heat Transfer 129 | . . 54 48 27 Siege Activations . | . . . . . Robots Corrupted . | . . . . . Combat Hostiles . | . . . . . Parts Fried . | . . . . . Impact Corruptions . | . . . . . Robots Melted . | . . . . . Combat Hostiles . | . . . . . Parts Melted . | . . . . . Heat Transferred 50 | . 50 . . . Parts Sabotaged . | . . . . . Parts Stolen . | . . . . . Parts Stripped . | . . . . . Power Chain Reactions 1 | . 1 . . . Alert | -11 -10 -10 -9 -9 ------- Run | Yrd Mat Min Mat Min Peak Influence 184 | . 56 130 184 126 Initial 71 | . . 21 50 71 Average 66 | . 17 61 104 111 Maximum Alert Level . | . . . . . Low Security (%) 100 | 100 100 100 100 100 Level 1 . | . . . . . Level 2 . | . . . . . Level 3 . | . . . . . Level 4 . | . . . . . Level 5 . | . . . . . High Security . | . . . . . Max Security . | . . . . . Squads Dispatched 3 | . 1 . 2 . Investigation 2 | . . . 2 . Extermination . | . . . . . Reinforcement 1 | . 1 . . . Assault . | . . . . . Garrison . | . . . . . Intercept . | . . . . . Searches Triggered . | . . . . . Construction Impeded . | . . . . . Haulers Reinforced . | . . . . . Active Scanning Responses . | . . . . . Cargo Convoy Interrupts . | . . . . . Stealth | -11 -10 -10 -9 -9 --------- Run | Yrd Mat Min Mat Min Distress Signals 1 | . . . 1 . Communications Jammed . | . . . . . Distress Signals . | . . . . . Times Spotted 29 | . 8 5 13 3 Peak Tracking Total 9 | . 7 3 9 3 Tactical Retreats 3 | . . . 2 1 Traps | -11 -10 -10 -9 -9 ------- Run | Yrd Mat Min Mat Min Traps Triggered . | . . . . . Indirectly . | . . . . . Trap Hack Attempts . | . . . . . Triggered . | . . . . . Disarmed . | . . . . . Reprogrammed . | . . . . . Reused . | . . . . . Traps Extracted . | . . . . . Installed . | . . . . . Triggered . | . . . . . Most Traps Carried 2 | . . . . 2 Machines | -11 -10 -10 -9 -9 ---------- Run | Yrd Mat Min Mat Min Machines Disabled . | . . . . . Max in Single Turn . | . . . . . Machines Repaired . | . . . . . Machines Dismantled . | . . . . . Machines Sabotaged . | . . . . . Overloaded Fab Kills . | . . . . . Hacking | -11 -10 -10 -9 -9 --------- Run | Yrd Mat Min Mat Min Machines Accessed 6 | . 1 . 5 . Terminals 6 | . 1 . 5 . Fabricators . | . . . . . Repair Stations . | . . . . . Recycling Units . | . . . . . Scanalyzers . | . . . . . Garrison Access . | . . . . . Total Hacks 23 | . 3 . 20 . Successful 9 | . 2 . 7 . Failed 13 | . 1 . 12 . Catastrophic 2 | . 1 . 1 . Database Lockouts 1 | . . . 1 . Manual 14 | . 3 . 11 . Terminals 23 | . 3 . 20 . Fabricators . | . . . . . Repair Stations . | . . . . . Recycling Units . | . . . . . Scanalyzers . | . . . . . Garrison Access . | . . . . . Terminal Hacks 9 | . 2 . 7 . Robot Analysis 6 | . 2 . 4 . Branch Access Points 1 | . . . 1 . Locate Traps 1 | . . . 1 . Zone Layout 1 | . . . 1 . Fabricator Hacks . | . . . . . Repair Station Hacks . | . . . . . Recycling Unit Hacks . | . . . . . Scanalyzer . | . . . . . Garrison Access Hacks . | . . . . . Unauthorized Hacks . | . . . . . Terminals . | . . . . . Fabricators . | . . . . . Repair Stations . | . . . . . Recycling Units . | . . . . . Scanalyzers . | . . . . . Garrison Access . | . . . . . Data Cores Recovered . | . . . . . Used . | . . . . . Hacking Detections 6 | . 1 . 5 . Full Trace Events 5 | . 1 . 4 . Feedback Events 1 | . . . 1 . Corruption 1 | . . . 1 . Feedback Blocked . | . . . . . Robot Schematics Acquired . | . . . . . Robots Built . | . . . . . Authchips . | . . . . . Time . | . . . . . Total Robot Build Rating . | . . . . . Part Schematics Acquired . | . . . . . Parts Built . | . . . . . Authchips . | . . . . . Time . | . . . . . Total Part Build Rating . | . . . . . Parts Repaired . | . . . . . Time . | . . . . . Parts Recycled . | . . . . . Recycled Matter . | . . . . . Retrieved Matter . | . . . . . Retrieved Components . | . . . . . Parts Scanalyzed . | . . . . . Part Schematics Acquired . | . . . . . Parts Damaged . | . . . . . Bothacking | -11 -10 -10 -9 -9 ------------ Run | Yrd Mat Min Mat Min Used RIF Installer . | . . . . . Robots Hacked . | . . . . . Non-combat . | . . . . . Combat . | . . . . . Robot Hacks Applied . | . . . . . Relay Couplers Released . | . . . . . Fabnet Peak Effective % . | . . . . . Robots Rewired . | . . . . . Allies Hacked . | . . . . . Hacks Repelled . | . . . . . Allies | -11 -10 -10 -9 -9 -------- Run | Yrd Mat Min Mat Min Total Allies 5 | . . 3 . 2 Largest Group 3 | . . 3 . 2 Highest-Rated Group 46 | . . 40 . 46 Highest-Rated Ally 31 | . . 16 . 31 Total Orders . | . . . . . Ally Attacks 6 | . . 6 . . Total Damage 75 | . . 75 . . Kills 1 | . . 1 . . Allies Corrupted . | . . . . . Allies Melted . | . . . . . Intel | -11 -10 -10 -9 -9 ------- Run | Yrd Mat Min Mat Min Robot Analysis Total 6 | . 2 . 4 . Derelict Logs Recovered 3 | . . 1 . 2 Drone Launches . | . . . . . Drone Recoveries . | . . . . . Exploration | -11 -10 -10 -9 -9 ------------- Run | Yrd Mat Min Mat Min Turns Passed 1213 | 36 130 745 105 197 Spaces Moved 1645 | 31 129 735 259 491 Core 1 | 1 . . . . Treads . | . . . . . Legs . | . . . . . Wheels 822 | 30 129 663 . . Hover . | . . . . . Flight 822 | . . 72 259 491 Fastest Speed 34 | 50 90 37 34 34 Average Speed 62 | 88 90 85 36 34 Slowest Speed 280 | 90 90 280 37 34 Overloaded Moves . | . . . . . Propulsion Burnouts . | . . . . . Robots Hopped 17 | . . 1 7 9 Cave-ins Triggered . | . . . . . Exploration Rate (%) 51 | 3 32 98 40 86 Regions Visited 4 Branch Regions 2 Pre-discovered Areas 3 | . . 2 . 1 Known Exits Taken 1 | . . . 1 . Unknown Exits Taken 3 | 1 1 1 . . Scrap Searched 3 | . . 1 . 2 Spaces Dug . | . . . . . Terrain Destroyed 6 | . 6 . . . Melee . | . . . . . Projectile . | . . . . . AOE 6 | . 6 . . . Terrain Rammed . | . . . . . Walls Destroyed . | . . . . . Machines Disabled . | . . . . . Actions | -11 -10 -10 -9 -9 --------- Run | Yrd Mat Min Mat Min Total 1731 | 36 135 794 264 502 Wait 9 | . . 9 . . Move 1610 | 30 128 732 245 475 Hop 14 | . . 1 6 7 Pick Up 14 | . 2 3 5 4 Fast Attach 14 | 6 1 3 2 2 Attach 2 | . . 1 1 . Detach 5 | . . 5 . . Swap 5 | . . 4 . 1 Drop 16 | . . 5 5 6 Fire 42 | . 4 31 . 7 Melee . | . . . . . Ram . | . . . . . Kick . | . . . . . Crush . | . . . . . Escape Stasis . | . . . . . Rewire . | . . . . . Trap . | . . . . . Miscellaneous . | . . . . . Route ------- -11/Scrapyard -10/Materials -10/Mines (discovered 2 exits: *Mat x2) -9/Materials (discovered 3 exits: [*Mat] / *Min x2) -9/Mines (discovered 2 exits: [*Mat x2]) History --------- Turn | Location | Event 21 | -11/Scrapyard | Discovered new exit (range 16) 37 | -11/Scrapyard | Entered Materials 155 | -10/Materials | Discovered new exit (range 15) 167 | -10/Materials | Entered Mines 252 | -10/Mines | Discovered new exit (range 8) 253 | -10/Mines | Learned location of Storage (-7) 301 | -10/Mines | A weapon hastily lodged in a ceiling crevice suddenly fell to the ground 314 | -10/Mines | Build established: Mutant 369 | -10/Mines | Learned location of Zion (-6) 372 | -10/Mines | Discovered new exit (range 2) 377 | -10/Mines | Assisted by bots powering up and referring to "LRC-V3" 439 | -10/Mines | Received a Rocket Launcher from a helpful Derelict 912 | -10/Mines | Entered Materials 912 | -9/Materials | Evolved 2 slots: Propulsion x2 952 | -9/Materials | Central database locked down 982 | -9/Materials | Identified exit to Mines 1006 | -9/Materials | Discovered new exit (range 15) 1017 | -9/Materials | Entered Mines 1033 | -9/Mines | Learned Materials terminal intel 1047 | -9/Mines | Found a hidden stash of uninstalled traps 1136 | -9/Mines | Discovered new exit (range 8) 1161 | -9/Mines | Discovered new exit (range 8) 1214 | -9/Mines | Self-destructed Last Messages --------------- 01124_ R-06 Scavenger destroyed. 01124_ T-07 Excavator knocked back. 01129_ Acquired 96 matter. 01135_ System corrupted: Substantial component data lost. 01136_ EXIT=FOUND 01142_ R-06 Scavenger collects Tractor Beam. 01152_ K-01 Serf cleans the Core Extractor. 01161_ Acquired 2 matter. 01161_ EXIT=FOUND 01176_ A&CJ> JS%&XCKXUHXGMLZY 01196_ Searching scrap... 01196_ Found Particle Cannon. 01196_ Found Particle Gun. 01196_ Found Disposable Heat Sink. 01196_ Found Lgt. Cannon. 01196_ Found 31 Matter. 01198_ Dropped Lgt. Cannon. 01200_ Dropped Hcp. Matter Pod. 01200_ Acquired Lgt. Cannon. 01201_ Acquired 19 matter. Map ----- +----------------------------------------------------+ | | | | | | | | | | | | | | | | | | | | | | | | | | | | | | | | | | | ????????????????????????????????????????????? | | ????????????????????????????????????????????? | | #####???????????????????????????????????????? | | #???????????????????????????????????????? | | #??????????????????#####????????####????? | | ### #?????????????????## ##????####& ##???? | | ??# #?????????????????# #???## & [ #???? | | ??# ######???????###??# ##???# #???? | | ??# #??????## ##?# @ #????# #???? | | ??# #??????# #?# #????# #???? | | ??##### #??????# #### ###???## ##??? | | ??????# #??????## ## ##???## #??? | | ??????# #???????## ###??## #??? | | ??##### ########## ##?## ##??? | | ?## ## #?# ##???? | | ## # ## #?# ##????? | | # ############# #### ##?# ####??? | | #??????####### #??# ##??# #??? | | ######### #??# ###### ### #??? | | ## #??# ###?# #??? | | ### ##??###### ##### ##?? | | ########## ### ##????????# #?? | | ####????????# #?# #?????????# [ #?? | | #???????????# #?# #?????????######## /#?? | | #???????????# ##?# #????????????????# #?? | | #??????????## ##??# #????????????????#/!#?? | | ##????????## ]##??# #????????????????# #?? | | ##???????# !%#??? #????????????????# #?? | | ##??????# ! [#???###????????????????# #?? | | #??????## #??????????????????????# #?? | | #???????## ##??????????????????????# #?? | | #????????####???????????????????????# #?? | | ##?????????????????????????????????## #?? | +----------------------------------------------------+ Best States ------------- Heat Dissipation 28 Energy Generation 10 Energy Capacity 125 Matter Stores 300 Matter Capacity 300 Sight Range 16 Terrain Scan Density 10 Propulsion Shielding 33 Evasion (%) 63 Item Schematics ----------------- None Robot Schematics ------------------ None Fabricated ------------ Nothing Alien Tech Used ----------------- None Achievements -------------- None Challenges ------------ None Game ------ Seed WarpLightpackSource Manual? 0 Play Time 00:12:55 Cumulative 399.0 hours Start 2024.05.21 @ 19:25:24 End 2024.05.21 @ 19:36:06 Sessions 1 Manual Loads 0 Difficulty Rogue Special Mode None Game No. 142 Rogue 142 Adventurer 0 Explorer 0 Win Type - Total 2 Types 0/0/2/0/0/0/0/0/0 Lore% 70 Gallery% 78 Achievement% 62 Wizard Run 0 Options --------- Layout 0 ASCII 0 Keyboard 1 Movement Arrows Keybinds 0 Fullscreen 1 Font 12/Proggy Map View 83x54 Zoom Use 0% Tactical HUD 1 Map Filters NONE Filters NONE Steam 0 RUN: 235e9540-7931-4160-9c6f-d0626355cc1e